Cogmind - Beta 14 @@@ ROGUE MODE // 2024.09.08 @ 15:48:43 Player: puppuppit Result: Destroyed by H-55 Commando with Assault Rifle Performance ------------- Evolutions (2) 1000 Regions Visited (7) 1400 Robots Destroyed (120) 600 Value Destroyed (2915) 2915 Prototype IDs (30) 600 Alien Tech Used (0) 0 Bonus (1322) 1322 TOTAL SCORE: 7837 Bonus ------- High Alert Combat Kills 406 Follower Combat Kills 82 Entered Garrisons 200 Used RIF Installer 500 Aligned with FarCom 300 Friendly Fire -166 Cogmind --------- Core Integrity 0/550 Matter 7/300 Energy 248/265 System Corruption 0% Temperature Cool (12) Movement Flying (29) Location -8/Materials Parts ------- > --- POWER (1) -------- Improved Ion Engine > --- PROPULSION (4) --- Improved VTOL Module Xenon Bombardment Thruster Xenon Bombardment Thruster Xenon Bombardment Thruster > --- UTILITY (3) ------ Improved Heat Sink Reaction Control System Hacking Suite > --- WEAPON (3) ------- Enhanced Autogun Enhanced Autogun Enhanced Autogun > --- INVENTORY (5) ---- Flight Unit Authchip [R/NC] Authchip [R/Combat] Authchip [R/Combat] Trap Reconfigurator Peak State ------------ > --- POWER ------------ Improved Deuterium Engine > --- PROPULSION ------- Xenon Bombardment Thruster Xenon Bombardment Thruster Xenon Bombardment Thruster Xenon Bombardment Thruster > --- UTILITY ---------- Improved Heat Sink Reaction Control System Improved Light Armor Plating > --- WEAPON ----------- High-powered Shotgun Enhanced Autogun Enhanced Autogun > --- INVENTORY -------- Weapon Cycler Improved Light Armor Plating Trap Reconfigurator Enhanced Autogun Gauss Rifle [Rating: 42] Favorites ----------- Power Light Nuclear Core Engine Light Ion Engine Power Core Light Nuclear Core Propulsion Xenon Bombardment Thruster Leg Aluminum Leg Wheel Wheel Hover Unit Hover Unit Flight Unit Xenon Bombardment Thruster Utility Weapon Shielding Device Reaction Control System Storage Medium Storage Unit Processor Armor Integrity Analyzer Hackware Hacking Suite Protection Weapon Shielding Weapon Enhanced Autogun Energy Gun EM Pulse Gun Ballistic Gun Enhanced Autogun Ballistic Cannon Gauss Cannon Launcher Shock Bomb Launcher Build | -11 -10 -10 -10 -9 -8 -8 -8 ------- Run | Yrd Mat Min Exi Min Mat Gar Mat Slots Evolved 4 | . . . . . 4 . . Power . | . . . . . . . . Propulsion 2 | . . . . . 2 . . Utility 1 | . . . . . 1 . . Weapon 1 | . . . . . 1 . . Parts Attached 108 | 9 20 8 2 6 53 7 3 Power 13 | 2 2 1 . . 6 2 . Engine 10 | 2 2 . . . 4 2 . Core 3 | . . 1 . . 2 . . Reactor . | . . . . . . . . Propulsion 26 | 2 5 . . 1 15 1 2 Treads . | . . . . . . . . Leg 9 | . . . . . 9 . . Wheel 6 | 2 3 . . . 1 . . Hover 4 | . 2 . . 1 1 . . Flight 7 | . . . . . 4 1 2 Utility 27 | 2 4 1 1 2 13 3 1 Device 10 | 1 . . 1 . 6 1 1 Storage 2 | 1 1 . . . . . . Processor 5 | . 1 1 . 2 1 . . Hackware 2 | . . . . . 2 . . Protection 8 | . 2 . . . 4 2 . Artifact . | . . . . . . . . Weapon 42 | 3 9 6 1 3 19 1 . Energy Gun 6 | 3 3 . . . . . . Energy Cannon . | . . . . . . . . Ballistic Gun 22 | . 3 3 1 3 11 1 . Ballistic Cannon 4 | . 1 . . . 3 . . Launcher 10 | . 2 3 . . 5 . . Special Weapon . | . . . . . . . . Impact Weapon . | . . . . . . . . Slashing Weapon . | . . . . . . . . Piercing Weapon . | . . . . . . . . Special Melee Weapon . | . . . . . . . . Unidentified Prototypes 2 | . . . . . 1 . 1 Parts Lost 18 | . . 1 . 1 15 1 . Power 3 | . . . . . 3 . . Propulsion 7 | . . . . 1 5 1 . Utility 4 | . . 1 . . 3 . . Weapon 4 | . . . . . 4 . . Highest Loss Streak 11 | . . 1 . 1 11 1 . To Critical Strikes . | . . . . . . . . Average Slot Usage (%) 91 | . 96 91 91 84 83 99 96 Engine 6 | . 13 5 . . 6 8 9 Core 4 | . . 8 14 14 . . . Leg 4 | . . . . . 17 . . Wheel 5 | . 23 . . . . . . Hover 10 | . 4 28 28 26 3 . . Flight 8 | . . . . . 6 35 32 Device 6 | . 6 . 5 . 11 9 12 Storage 2 | . 11 . . . . . . Processor 3 | . 1 4 . 12 2 . . Hackware 1 | . . . . . . 9 9 Protection 8 | . 7 15 14 2 9 8 5 Energy Gun 3 | . 13 . . . . . . Ballistic Gun 19 | . 7 26 28 28 15 27 27 Ballistic Cannon 2 | . 5 . . . 5 . . Peak Build Rating 42 | 9 10 11 19 19 42 42 41 Average Rating 20 | 5 8 9 13 16 26 36 38 On Entrance 18 | . 9 9 10 19 19 42 36 Naked Turns 6 | . . . . . 6 . . Heaviest Build 37 | 14 21 12 13 12 37 23 20 Greatest Support 46 | 32 32 12 12 12 46 24 23 Greatest Overweight (x) 2 | . . . 1 1 2 . . Average Overweight (x) . | . . . . . . . . Largest Inventory Capacity 10 | 8 10 5 5 5 5 5 5 Average Capacity 5 | 7 9 5 5 5 5 5 5 Most Carried 10 | 2 10 5 5 5 5 5 5 Average Carried 5 | 1 7 5 5 4 4 4 4 Final Capacity 8 | 8 5 5 5 5 5 5 5 Final Carried 5 | 2 5 5 5 5 5 5 5 Class Distribution -------------------- 59% | Mutant 23% | Sprinter 6% | Scavenger-Tank 4% | Scavenger-Mutant 3% | Scavenger-Skirmisher Dominant Class ---------------- Mutant | -10/Materials Mutant | -10/Mines Mutant | -10/Exiles Mutant | -9/Mines Scavenger-Tank | -8/Materials Sprinter | -8/Garrison Sprinter | -8/Materials Resources | -11 -10 -10 -10 -9 -8 -8 -8 ----------- Run | Yrd Mat Min Exi Min Mat Gar Mat Matter Collected 3182 | 222 443 330 . 308 1649 230 . Remotely . | . . . . . . . . Salvage Created 3524 | 132 666 375 . 445 1676 230 . Parts 232 | 5 60 25 . 37 89 16 . Haulers Intercepted 4 | . 2 . . . 2 . . Recyclers Shooed 2 | . 1 1 . . . . . Parts Field Recycled . | . . . . . . . . Retrieved Matter . | . . . . . . . . Parts Self-Destructed . | . . . . . . . . Prevented . | . . . . . . . . Kills | -11 -10 -10 -10 -9 -8 -8 -8 ------- Run | Yrd Mat Min Exi Min Mat Gar Mat Combat Hostiles Destroyed 71 | . 11 12 . 8 31 9 . Guns 43 | . 7 4 . 8 15 9 . Cannons 8 | . . . . . 8 . . AOE 19 | . 4 8 . . 7 . . Classes Destroyed 17 | 2 7 1 . 2 5 . . Worker 17 | . 8 1 . 3 5 . . Builder 6 | . . . . 2 4 . . Tunneler 6 | 3 . . . 2 1 . . Hauler 4 | . 2 . . . 2 . . Recycler 7 | 1 . 2 . 1 3 . . Mechanic 1 | . 1 . . . . . . Operator 3 | . 3 . . . . . . Watcher 4 | . 3 . . . 1 . . Swarmer 25 | . 6 6 . 4 4 5 . Grunt 34 | . 5 5 . 4 18 2 . Brawler 1 | . . . . 1 . . . Duelist 1 | . . . . . 1 . . Sentry 7 | . . . . . 5 2 . Demolisher 1 | . . 1 . . . . . Specialist 1 | . . . . . 1 . . Hunter 1 | . . . . . 1 . . Heavy 1 | . . . . . 1 . . Best Kill Streak 7 | 2 7 4 . 4 7 6 . Combat Bots Only 6 | . 3 3 . 2 4 6 . Max Kills in Single Turn 4 | 1 2 3 . 2 4 1 . Gunslinging . | . . . . . . . . Exploded 4 | . 1 3 . . 4 . . Melee . | . . . . . . . . Uniques/NPCs Destroyed . | . . . . . . . . Combat | -11 -10 -10 -10 -9 -8 -8 -8 -------- Run | Yrd Mat Min Exi Min Mat Gar Mat Hostile Shots Fired 290 | . 48 22 . 14 178 24 4 Missed 99 | . 19 6 . 2 62 8 2 Damage Taken 3305 | . 320 179 . 142 2323 307 34 Core 752 | . 128 22 . 42 519 7 34 Absorbed by Shields 64 | . . . . . 64 . . Redirected to Shielding 46 | . 12 25 . 9 . . . Regen/Repaired (Parts) 31 | . 31 . . . . . . Core Remaining (%) 61 | 100 . . . 23 . . . Volleys Fired 320 | 14 71 31 . 33 147 24 . Largest 3 | 2 2 2 . 2 3 3 . Hottest 124 | 100 90 46 . 51 124 75 . Shots Fired 639 | 28 137 45 . 61 301 67 . Gun 506 | 28 113 36 . 61 201 67 . Cannon 105 | . 20 . . . 85 . . Launcher 28 | . 4 9 . . 15 . . Special . | . . . . . . . . Kinetic 507 | . 66 36 . 61 277 67 . Thermal 55 | 22 24 . . . 9 . . Explosive 13 | . 4 9 . . . . . Electromagnetic 64 | 6 43 . . . 15 . . Robot Hit Streak 12 | 6 5 12 . 6 11 6 . Robot Miss Streak 7 | 2 7 1 . 3 7 6 . Penetration Max 1 | . . . . 1 1 . . Secondary Targets 3 | . . . . 1 2 . . Max Gunslinging Chain 1 | . . . . 1 1 . . Shots Hit Robots 335 | 18 64 28 . 32 162 31 . Core Hits 168 | 5 36 21 . 18 75 13 . Critical Kills 1 | . . . . . 1 . . Critical Parts Destroyed 1 | . . . . 1 . . . Critical Strikes 13 | 1 3 . . 1 8 . . Burn 2 | 1 1 . . . . . . Destroy 2 | . . . . 1 1 . . Blast 7 | . . . . . 7 . . Corrupt 2 | . 2 . . . . . . Melee Attacks . | . . . . . . . . Impact . | . . . . . . . . Slashing . | . . . . . . . . Piercing . | . . . . . . . . Sneak Attacks . | . . . . . . . . Combat Hostiles . | . . . . . . . . Follow-up Attacks . | . . . . . . . . Damage Inflicted 8121 | 242 1257 929 . 579 4526 588 . Guns 4897 | 242 893 429 . 579 2166 588 . Cannons 1561 | . 131 . . . 1430 . . Explosions 1663 | . 233 500 . . 930 . . Melee . | . . . . . . . . Ramming . | . . . . . . . . Kinetic 5709 | . 561 429 . 579 3552 588 . Thermal 570 | 163 150 . . . 257 . . Explosive 733 | . 233 500 . . . . . Electromagnetic 1109 | 79 313 . . . 717 . . Impact . | . . . . . . . . Slashing . | . . . . . . . . Piercing . | . . . . . . . . Highest Corruption . | . . . . . . . . Average Corruption . | . . . . . . . . Corruption Purged . | . . . . . . . . Corruption Blocked . | . . . . . . . . Overload Shots . | . . . . . . . . Overflow Damage 135 | . 16 12 . . 107 . . Projectiles 13 | . 10 . . . 3 . . Explosions 122 | . 6 12 . . 104 . . Melee . | . . . . . . . . Knockbacks 7 | . . . . . 7 . . Impact . | . . . . . . . . Kinetic 7 | . . . . . 7 . . Secondary . | . . . . . . . . Self-Inflicted Damage 42 | . . . . . 42 . . Shots 4 | . . . . . 4 . . Rammed . | . . . . . . . . Targets Rammed . | . . . . . . . . Kicked . | . . . . . . . . Crushed . | . . . . . . . . Highest Temperature 328 | 312 280 9 . 37 321 328 1 Average Temperature 82 | 160 55 4 . 7 92 104 1 Received Heat Transfer 1089 | . 84 42 . 54 783 126 . Effects 2 | 2 . . . . . . . Energy Bleed 2 | 2 . . . . . . . Siege Activations . | . . . . . . . . Robots Corrupted 1 | . . . . . 1 . . Combat Hostiles 1 | . . . . . 1 . . Parts Fried 5 | . 2 . . . 3 . . Impact Corruptions . | . . . . . . . . Robots Melted . | . . . . . . . . Combat Hostiles . | . . . . . . . . Parts Melted 4 | . 1 . . 3 . . . Heat Transferred 1458 | 555 518 . . . 385 . . Parts Sabotaged . | . . . . . . . . Parts Stolen . | . . . . . . . . Parts Stripped . | . . . . . . . . Power Chain Reactions 3 | . . . . . 3 . . Alert | -11 -10 -10 -10 -9 -8 -8 -8 ------- Run | Yrd Mat Min Exi Min Mat Gar Mat Peak Influence 901 | 20 382 419 . 356 901 880 494 Initial 488 | . 13 33 . . 70 488 429 Average 386 | 6 153 256 . 183 534 730 447 Maximum Alert Level 3 | . 1 2 . 1 3 3 2 Low Security (%) 36 | 100 67 34 . 72 14 . . Level 1 20 | . 32 50 . 27 13 . . Level 2 22 | . . 15 . . 44 35 100 Level 3 20 | . . . . . 27 64 . Level 4 . | . . . . . . . . Level 5 . | . . . . . . . . High Security . | . . . . . . . . Max Security . | . . . . . . . . Squads Dispatched 10 | . 2 . . . 8 . . Investigation 1 | . . . . . 1 . . Extermination . | . . . . . . . . Reinforcement 7 | . 2 . . . 5 . . Assault 2 | . . . . . 2 . . Garrison . | . . . . . . . . Intercept . | . . . . . . . . Searches Triggered . | . . . . . . . . Construction Impeded 3 | . . . . . 3 . . Haulers Reinforced . | . . . . . . . . Active Scanning Responses . | . . . . . . . . Cargo Convoy Interrupts . | . . . . . . . . Stealth | -11 -10 -10 -10 -9 -8 -8 -8 --------- Run | Yrd Mat Min Exi Min Mat Gar Mat Distress Signals 7 | . 2 . . . 4 . 1 Communications Jammed . | . . . . . . . . Distress Signals . | . . . . . . . . Times Spotted 111 | . 21 12 . 10 52 12 4 Peak Tracking Total 8 | . 5 3 . 3 8 4 4 Tactical Retreats 10 | . 1 . . . 6 3 . Traps | -11 -10 -10 -10 -9 -8 -8 -8 ------- Run | Yrd Mat Min Exi Min Mat Gar Mat Traps Triggered 9 | . 2 . . . 1 6 . Indirectly . | . . . . . . . . Trap Hack Attempts . | . . . . . . . . Triggered . | . . . . . . . . Disarmed 6 | . 6 . . . . . . Reprogrammed 4 | . 4 . . . . . . Reused . | . . . . . . . . Traps Extracted . | . . . . . . . . Installed . | . . . . . . . . Triggered . | . . . . . . . . Machines | -11 -10 -10 -10 -9 -8 -8 -8 ---------- Run | Yrd Mat Min Exi Min Mat Gar Mat Machines Disabled 12 | . 2 . . 2 7 1 . Max in Single Turn 3 | . 1 . . 1 3 1 . Garrison Relay 1 | . . . . . . 1 . Machines Repaired . | . . . . . . . . Machines Dismantled . | . . . . . . . . Machines Sabotaged . | . . . . . . . . Overloaded Fab Kills . | . . . . . . . . Hacking | -11 -10 -10 -10 -9 -8 -8 -8 --------- Run | Yrd Mat Min Exi Min Mat Gar Mat Machines Accessed 29 | . 8 . 5 1 9 2 4 Terminals 15 | . 6 . . . 4 2 3 Fabricators . | . . . . . . . . Repair Stations 2 | . 1 . . . 1 . . Recycling Units 2 | . 1 . . . 1 . . Scanalyzers 3 | . . . . . 2 . 1 Garrison Access 1 | . . . . . 1 . . Total Hacks 122 | . 27 . 50 1 28 5 11 Successful 87 | . 13 . 50 1 17 1 5 Failed 33 | . 13 . . . 10 4 6 Catastrophic 6 | . 1 . . . 1 1 3 Database Lockouts 2 | . 1 . . . 1 . . Manual 22 | . 5 . 1 . 7 2 7 Terminals 46 | . 22 . . . 10 5 9 Fabricators . | . . . . . . . . Repair Stations 6 | . 3 . . . 3 . . Recycling Units 4 | . 2 . . . 2 . . Scanalyzers 14 | . . . . . 12 . 2 Garrison Access 1 | . . . . . 1 . . Terminal Hacks 69 | . 10 . 50 1 4 1 3 Record 49 | . . . 49 . . . . Robot Analysis 4 | . 2 . . . 2 . . Prototype ID Bank 3 | . 1 . . . 1 . 1 Open Door 1 | . . . . 1 . . . Level Access Points 1 | . . . . . . . 1 Branch Access Points 1 | . 1 . . . . . . Emergency Access Points 1 | . . . . . . 1 . Terminal Index 2 | . 1 . . . . . 1 Unreport Threat 2 | . 1 . . . 1 . . Disarm Traps 1 | . 1 . . . . . . Reprogram Traps 2 | . 2 . . . . . . Zone Layout 1 | . 1 . . . . . . Derelict Proto ID Bank 1 | . . . 1 . . . . Fabricator Hacks . | . . . . . . . . Repair Station Hacks 3 | . 2 . . . 1 . . Scan Component 1 | . 1 . . . . . . Repair 1 | . 1 . . . . . . Refit 1 | . . . . . 1 . . Recycling Unit Hacks 2 | . 1 . . . 1 . . Retrieve Components 2 | . 1 . . . 1 . . Scanalyzer 12 | . . . . . 10 . 2 Insert Component 5 | . . . . . 4 . 1 Analyze 7 | . . . . . 6 . 1 Garrison Access Hacks 1 | . . . . . 1 . . Unlock Access 1 | . . . . . 1 . . Unauthorized Hacks . | . . . . . . . . Terminals . | . . . . . . . . Fabricators . | . . . . . . . . Repair Stations . | . . . . . . . . Recycling Units . | . . . . . . . . Scanalyzers . | . . . . . . . . Garrison Access . | . . . . . . . . Data Cores Recovered 1 | . 1 . . . . . . Used 1 | . 1 . . . . . . Hacking Detections 18 | . 7 . . . 6 2 3 Full Trace Events . | . . . . . . . . Feedback Events . | . . . . . . . . Feedback Blocked . | . . . . . . . . Robot Schematics Acquired . | . . . . . . . . Robots Built . | . . . . . . . . Authchips . | . . . . . . . . Time . | . . . . . . . . Total Robot Build Rating . | . . . . . . . . Part Schematics Acquired 5 | . . . . . 4 . 1 Parts Built . | . . . . . . . . Authchips . | . . . . . . . . Time . | . . . . . . . . Total Part Build Rating . | . . . . . . . . Parts Repaired 1 | . 1 . . . . . . Time 32 | . 32 . . . . . . Parts Recycled . | . . . . . . . . Recycled Matter . | . . . . . . . . Retrieved Matter . | . . . . . . . . Retrieved Components 10 | . 8 . . . 2 . . Parts Scanalyzed 5 | . . . . . 4 . 1 Part Schematics Acquired 5 | . . . . . 4 . 1 Parts Damaged 1 | . . . . . 1 . . Bothacking | -11 -10 -10 -10 -9 -8 -8 -8 ------------ Run | Yrd Mat Min Exi Min Mat Gar Mat Used RIF Installer 1 | . . . . . . 1 . Robots Hacked . | . . . . . . . . Non-combat . | . . . . . . . . Combat . | . . . . . . . . Robot Hacks Applied . | . . . . . . . . Relay Couplers Released 4 | . . . . . . 4 . Machine Destruction 4 | . . . . . . 4 . Fabnet Peak Effective % . | . . . . . . . . Robots Rewired . | . . . . . . . . Allies Hacked . | . . . . . . . . Hacks Repelled . | . . . . . . . . Allies | -11 -10 -10 -10 -9 -8 -8 -8 -------- Run | Yrd Mat Min Exi Min Mat Gar Mat Total Allies 4 | . . 3 . 1 . . . Largest Group 3 | . . 3 3 3 2 . . Highest-Rated Group 63 | . . 40 40 63 32 . . Highest-Rated Ally 31 | . . 16 16 31 16 . . Total Orders 2 | . . . . 2 . . . STAY 1 | . . . . 1 . . . FOLLOW 1 | . . . . 1 . . . Ally Attacks 42 | . . 10 . 30 2 . . Total Damage 529 | . . 117 . 396 16 . . Kills 4 | . . 1 . 3 . . . Allies Corrupted . | . . . . . . . . Allies Melted . | . . . . . . . . Intel | -11 -10 -10 -10 -9 -8 -8 -8 ------- Run | Yrd Mat Min Exi Min Mat Gar Mat Robot Analysis Total 4 | . 2 . . . 2 . . Derelict Logs Recovered 2 | . . . . 2 . . . Drone Launches . | . . . . . . . . Drone Recoveries . | . . . . . . . . Exploration | -11 -10 -10 -10 -9 -8 -8 -8 ------------- Run | Yrd Mat Min Exi Min Mat Gar Mat Turns Passed 3947 | 93 881 390 298 516 1007 704 58 Spaces Moved 4042 | 36 740 412 399 641 743 900 171 Core 34 | 2 . . . . 32 . . Treads . | . . . . . . . . Legs 251 | . . . . . 251 . . Wheels 647 | 34 582 . . . 31 . . Hover 1675 | . 158 412 399 641 65 . . Flight 1435 | . . . . . 364 900 171 Fastest Speed 29 | 50 56 56 56 56 31 31 29 Average Speed 58 | 97 78 56 71 58 70 31 29 Slowest Speed 260 | 100 100 56 116 120 260 34 31 Overloaded Moves . | . . . . . . . . Propulsion Burnouts . | . . . . . . . . Robots Hopped 9 | . . . . . 6 . 3 Cave-ins Triggered . | . . . . . . . . Exploration Rate (%) 60 | 4 94 69 90 90 50 64 19 Regions Visited 7 Branch Regions 3 Pre-discovered Areas 2 | . . . 1 1 . . . Known Exits Taken 2 | . 1 . . . 1 . . Unknown Exits Taken 4 | 1 . 1 1 1 . . . Scrap Searched 3 | . . 1 . 2 . . . Spaces Dug 2 | . . . . . 2 . . Terrain Destroyed 158 | . 9 40 . 23 86 . . Melee . | . . . . . . . . Projectile 56 | . . . . 5 51 . . AOE 102 | . 9 40 . 18 35 . . Terrain Rammed . | . . . . . . . . Walls Destroyed . | . . . . . . . . Machines Disabled . | . . . . . . . . Actions | -11 -10 -10 -10 -9 -8 -8 -8 --------- Run | Yrd Mat Min Exi Min Mat Gar Mat Total 5124 | 62 905 523 412 719 1034 1292 177 Wait 477 | 2 36 71 12 29 48 279 . Move 4017 | 35 739 411 398 640 730 899 165 Hop 9 | . . . . . 6 . 3 Pick Up 45 | 1 18 . . 5 15 4 2 Fast Attach 45 | 8 8 1 1 2 22 2 1 Attach 24 | . 4 . . 1 16 1 2 Detach 19 | 1 3 . . . 13 1 1 Swap 39 | 1 8 7 1 3 15 4 . Drop 57 | . 18 2 . 6 22 6 3 Fire 320 | 14 71 31 . 33 147 24 . Melee . | . . . . . . . . Ram . | . . . . . . . . Kick . | . . . . . . . . Crush . | . . . . . . . . Escape Stasis 72 | . . . . . . 72 . Rewire . | . . . . . . . . Trap . | . . . . . . . . Miscellaneous . | . . . . . . . . Route ------- -11/Scrapyard -10/Materials (discovered 5 exits: [*Mat x3] / *Min x2) -10/Mines (discovered 3 exits: [*Mat x2] / *Exi) -10/Exiles (discovered 2 exits: *Min x2) -9/Mines -8/Materials (discovered 3 exits: *Fac / [*Sto] / Gar) -8/Garrison (discovered 2 exits: *Mat x2) -8/Materials (discovered 3 exits: Fac x3) History --------- Turn | Location | Event 28 | -11/Scrapyard | Discovered new exit (range 16) 94 | -11/Scrapyard | Entered Materials 166 | -10/Materials | Discovered new exit (range 11) 210 | -10/Materials | Central database locked down 301 | -10/Materials | Build established: Mutant 508 | -10/Materials | Discovered new exit (range 3) 586 | -10/Materials | Discovered new exit (range 17) 661 | -10/Materials | Discovered new exit (range 3) 700 | -10/Materials | Identified exit to Mines 749 | -10/Materials | Core integrity fell below 50% 920 | -10/Materials | Repaired Hvy. Assault Rifle 939 | -10/Materials | Discovered new exit (range 6) 975 | -10/Materials | Entered Mines 1004 | -10/Mines | Deemed a non-threat by the Exiles lab entrance 1004 | -10/Mines | Discovered new exit (range 5) 1036 | -10/Mines | Discovered new exit (range 13) 1156 | -10/Mines | Assembled infested the area 1175 | -10/Mines | Assisted by bots powering up and referring to "LRC-V3" 1312 | -10/Mines | Discovered new exit (range 9) 1365 | -10/Mines | Entered Exiles 1365 | -10/Exiles | Accompanied by 3 allies 1374 | -10/Exiles | Discovered new exit (range 15) 1391 | -10/Exiles | Met 8R-AWN 1399 | -10/Exiles | Met EX-HEX 1422 | -10/Exiles | Met EX-DEC 1434 | -10/Exiles | Visited The Gauntlet 1497 | -10/Exiles | Learned location of Zion (-6) 1508 | -10/Exiles | Met EX-BIN 1515 | -10/Exiles | Aligned with FarCom system 1516 | -10/Exiles | Given EX-Vault access code 1540 | -10/Exiles | Opened EX-Vault 1545 | -10/Exiles | Found Trap Reconfigurator 1570 | -10/Exiles | Warned to stay clear of 0b10 Research branches 1648 | -10/Exiles | Discovered new exit (range 12) 1663 | -10/Exiles | Left Exiles lab with Trap Reconfigurator 1663 | -10/Exiles | Entered Mines 1663 | -9/Mines | Accompanied by 3 allies 1685 | -9/Mines | Met a Derelict bent on vengeance 1701 | -9/Mines | Met a Derelict who couldn't figure out how to use a Trap Extractor 1710 | -9/Mines | Learned Materials stockpile data 1790 | -9/Mines | Discovered new exit (range 6) 1842 | -9/Mines | Received a Mining Laser from a helpful Derelict 2179 | -9/Mines | Entered Materials 2179 | -8/Materials | Accompanied by 2 allies 2179 | -8/Materials | Evolved 4 slots: Propulsion x2, Utility x1, Weapon x1 2267 | -8/Materials | Lost 3 allies 2579 | -8/Materials | First assault squad dispatched 2638 | -8/Materials | Core integrity fell below 50% 2648 | -8/Materials | Lost 11 parts (1p4n2u4w) 2678 | -8/Materials | Core integrity fell below 20% 2815 | -8/Materials | Discovered new exit (range 12) 3010 | -8/Materials | Discovered new exit (range 6) 3168 | -8/Materials | Central database locked down 3180 | -8/Materials | Identified exit to Garrison 3186 | -8/Materials | Entered Garrison 3328 | -8/Garrison | Triggered checkpoint 3346 | -8/Garrison | Installed Relay Interface Framework 3546 | -8/Garrison | Discovered new exit (range 10) 3597 | -8/Garrison | Build established: Sprinter 3705 | -8/Garrison | Discovered new exit (range 11) 3744 | -8/Garrison | Triggered checkpoint 3869 | -8/Garrison | Garrison Relay disabled 3870 | -8/Garrison | Triggered checkpoint 3890 | -8/Garrison | Entered Materials 3942 | -8/Materials | Identified exit to Factory 3948 | -8/Materials | Destroyed by H-55 Commando with Assault Rifle Last Messages --------------- 03910_ Identified Imp. VTOL Module. 03926_ Dropped Lgt. Armor Plating. 03928_ Acquired Flight Unit. 03936_ W-25 Informer sends out distress signal. 03939_ K-01 Serf collects debris. 03940_ Connecting with Terminal... >>Index(Terminals) Found 12 terminals. Downloaded coordinate data. 03942_ Connecting with Terminal... >>Access(Main) Found 3 level access points to Factory: (7,45) (47,12) (93,43) Map updated. 03942_ Connecting with Terminal... 03943_ K-01 Serf cleans the Electrolysis Chamber. 03947_ K-01 Serf collects debris. 03948_ Penetrated by Slug. Map ----- +----------------------------------------------------+ | ??????????????????????????????????????? | | ??????????????????????????????????????? | | ??????????????????????????????????????? | | ??????????????????????????????????????? | | ??????????????????????????????????????? | | ????????????????????????????????